fUSD/lending_fUSD_20250417
["ID","MTS","AMOUNT","RATE_DAILY","PERIOD"]
[358233551,1744859455625,-1091.91,0.00052328,120]
[358233552,1744859455635,-500.0,0.00052328,120]
[358233553,1744859455645,-500.0,0.00052328,120]
[358233554,1744859455655,-500.0,0.00052328,120]
[358233555,1744859455665,-1077.68,0.00052328,120]
[358233556,1744859455676,-151.0,0.00052328,120]
[358233557,1744859455685,-151.0,0.00052328,120]
[358233558,1744859455695,-500.0,0.00052328,120]
[358233559,1744859455705,-500.0,0.00052328,120]
[358233560,1744859455715,-1580.31,0.00052328,120]
[358233561,1744859455725,-1511.55,0.00052328,120]
[358233562,1744859455735,-500.0,0.00052328,120]
[358233563,1744859455745,-500.0,0.00052328,120]
[358233564,1744859455755,-500.0,0.00052328,120]
[358233565,1744859455765,-2935.82,0.00052328,120]
[358233566,1744859455775,-893.5,0.00052328,120]
[358233567,1744859455785,-2038.43,0.00052328,120]
[358233568,1744859455795,-254.485531,0.00052328,120]
[358233569,1744859455804,-254.485531,0.00052328,120]
[358233570,1744859455817,-654.13,0.00052328,120]
[358233571,1744859455827,-500.0,0.00052328,120]
[358233572,1744859455837,-193.780767,0.00052328,120]
[358233573,1744859455846,-500.0,0.00052328,120]
[358233574,1744859455863,-1124.29,0.00052328,120]
[358233575,1744859455873,-743.33,0.00052328,120]
[358233576,1744859455882,-254.485531,0.00052328,120]
[358233577,1744859455894,-801.4,0.00052328,120]
[358233578,1744859455904,-254.485531,0.00052328,120]
[358233579,1744859455914,-1015.17615723,0.00052328,120]
[358233580,1744859455924,-500.0,0.00052328,120]
[358233581,1744859455934,-501.6,0.00052328,120]
[358233582,1744859455944,-560.54035201,0.00052328,120]
[358233583,1744859455954,-622.14,0.00052328,120]
[358233584,1744859455964,-2318.81,0.00052328,120]
[358233585,1744859455975,-2000.0,0.00052328,120]
[358233586,1744859455986,-1007.92,0.00052328,120]
[358233587,1744859455996,-500.0,0.00052328,120]
[358233588,1744859456007,-2484.57,0.00052328,120]
[358233589,1744859456018,-500.0,0.00052328,120]
[358233590,1744859456028,-500.0,0.00052328,120]
[358233591,1744859456040,-500.0,0.00052328,120]
[358233592,1744859456050,-500.0,0.00052328,120]
[358233593,1744859456061,-273.38,0.00052328,120]
[358233594,1744859456071,-534.00366593,0.00052328,120]
[358233595,1744859456082,-506.032719,0.00052328,120]
[358233596,1744859456092,-506.032719,0.00052328,120]
[358233597,1744859456101,-500.0,0.00052328,120]
[358233598,1744859456111,-1106.776618,0.00052328,120]
[358233599,1744859456122,-1106.776618,0.00052328,120]
[358233600,1744859456133,-500.0,0.00052328,120]
[358233601,1744859456144,-506.032719,0.00052328,120]
[358233602,1744859456155,-506.032719,0.00052328,120]
[358233603,1744859456167,-500.0,0.00052328,120]
[358233604,1744859456177,-500.0,0.00052328,120]
[358233605,1744859456187,-500.0,0.00052328,120]
[358233606,1744859456196,-500.0,0.00052328,120]
[358233607,1744859456205,-514.87179454,0.00052328,120]
[358233608,1744859456215,-1106.776618,0.00052328,120]
[358233609,1744859456225,-1106.776618,0.00052328,120]
[358233610,1744859456234,-171.84,0.00052328,120]
[358233611,1744859456244,-534.50730107,0.00052328,120]
[358233612,1744859456253,-512.35987558,0.00052328,120]
[358233613,1744859456263,-500.0,0.00052328,120]
[358233614,1744859456272,-814.93,0.00052328,120]
[358233615,1744859456282,-500.0,0.00052328,120]
[358233616,1744859456292,-2023.1,0.00052328,120]
[358233617,1744859456301,-151.0,0.00052328,120]
[358233618,1744859456311,-500.0,0.00052328,120]
[358233619,1744859456321,-151.0,0.00052328,120]
[358233620,1744859456331,-500.0,0.00052328,120]
[358233621,1744859456341,-500.0,0.00052328,120]
[358233622,1744859456351,-151.0,0.00052328,120]
[358233623,1744859456361,-151.0,0.00052328,120]
[358233624,1744859456372,-151.0,0.00052328,120]
[358233625,1744859456382,-151.0,0.00052328,120]
[358233626,1744859456391,-500.0,0.00052328,120]
[358233627,1744859456401,-647.13012667,0.00052328,120]
[358233628,1744859456411,-500.0,0.00052328,120]
[358233629,1744859456422,-500.0,0.00052328,120]
[358233630,1744859456432,-879.96,0.00052328,120]
[358233631,1744859456442,-500.0,0.00052328,120]
[358233632,1744859456452,-151.0,0.00052328,120]
[358233633,1744859456462,-151.0,0.00052328,120]
[358233634,1744859456472,-1587.84,0.00052328,120]
[358233635,1744859456483,-500.0,0.00052328,120]
[358233636,1744859456494,-500.0,0.00052328,120]
[358233637,1744859456504,-151.0,0.00052328,120]
[358233638,1744859456514,-647.20752822,0.00052328,120]
[358233639,1744859456523,-539.29,0.00052328,120]
[358233640,1744859456533,-151.0,0.00052328,120]
[358233641,1744859456543,-936.18,0.00052328,120]
[358233642,1744859456553,-500.0,0.00052328,120]
[358233643,1744859456563,-500.0,0.00052328,120]
[358233644,1744859456573,-557.0900972,0.00052328,120]
[358233645,1744859456583,-151.0,0.00052328,120]
[358233646,1744859456593,-151.0,0.00052328,120]
[358233647,1744859456603,-500.0,0.00052328,120]
[358233648,1744859456613,-151.0,0.00052328,120]
[358233649,1744859456623,-500.0,0.00052328,120]
[358233650,1744859456633,-157.57242,0.00052328,120]
[358233651,1744859456643,-500.0,0.00052328,120]
[358233652,1744859456653,-1973.98,0.00052328,120]
[358233653,1744859456663,-1057.57,0.00052328,120]
[358233654,1744859456672,-571.06,0.00052328,120]
[358233655,1744859456682,-1316.81,0.00052328,120]
[358233656,1744859456691,-500.0,0.00052328,120]
[358233657,1744859456701,-525.72300058,0.00052328,120]
[358233658,1744859456711,-989.05,0.00052328,120]
[358233659,1744859456720,-500.0,0.00052328,120]
[358233660,1744859456730,-151.0,0.00052328,120]
[358233661,1744859456740,-696.52,0.00052328,120]
[358233662,1744859456750,-1214.35,0.00052328,120]
[358233663,1744859456760,-500.0,0.00052328,120]
[358233664,1744859456769,-500.0,0.00052328,120]
[358233665,1744859456779,-152.75097,0.00052328,120]
[358233666,1744859456789,-500.0,0.00052328,120]
[358233667,1744859456803,-445.33550098,0.00052328,60]
[358233668,1744859457030,-2041.00532791,0.00052328,120]
[358233669,1744859457096,-587.19467209,0.00052328,120]
[358233670,1744859457106,-500.0,0.00052328,120]
[358233671,1744859457116,-1009.19,0.00052328,120]
[358233672,1744859457125,-550.89,0.00052328,120]
[358233673,1744859457134,-1105.39,0.00052328,118]
[358233674,1744859457143,-151.0,0.00052328,120]
[358233675,1744859457153,-172.387674,0.00052328,120]
[358233676,1744859457163,-794.25,0.00052328,120]
[358233677,1744859457173,-978.75,0.00052328,120]
[358233678,1744859457181,-500.0,0.00052328,120]
[358233679,1744859457189,-500.0,0.00052328,120]
[358233680,1744859457198,-931.1,0.00052328,120]
[358233681,1744859457208,-548.86,0.00052328,120]
[358233682,1744859457217,-500.0,0.00052328,120]
[358233683,1744859457226,-151.0,0.00052328,30]
[358233684,1744859457235,-1868.28,0.00052328,120]
[358233685,1744859457245,-151.0,0.00052328,30]
[358233686,1744859457254,-1244.71,0.00052328,120]
[358233687,1744859457265,-359.005964,0.00052328,120]
[358233688,1744859457275,-500.0,0.00052328,120]
[358233689,1744859457290,-359.005964,0.00052328,120]
[358233690,1744859457300,-500.0,0.00052328,120]
[358233691,1744859457310,-857.75,0.00052328,120]
[358233692,1744859457320,-500.0,0.00052328,120]
[358233693,1744859457329,-151.0,0.00052328,5]
[358233694,1744859457339,-1035.66,0.00052328,120]
[358233695,1744859457348,-359.005964,0.00052328,120]
[358233696,1744859457358,-359.005964,0.00052328,120]
[358233697,1744859457368,-500.0,0.00052328,120]
[358233698,1744859457377,-546.35,0.00052328,120]
[358233699,1744859457387,-637.28,0.00052328,120]
[358233700,1744859457397,-500.0,0.00052328,120]
[358233701,1744859457406,-500.0,0.00052328,120]
[358233702,1744859457416,-500.0,0.00052328,120]
[358233703,1744859457426,-151.0,0.00052328,120]
[358233704,1744859457435,-1129.53,0.00052328,120]
[358233705,1744859457445,-507.44084827,0.00052328,120]
[358233706,1744859457454,-151.0,0.00052328,120]
[358233707,1744859457465,-2601.57,0.00052328,120]
[358233708,1744859457474,-539.28,0.00052328,120]
[358233709,1744859457485,-500.0,0.00052328,120]
[358233710,1744859457495,-500.0,0.00052328,120]
[358233711,1744859457504,-500.0,0.00052328,120]
[358233712,1744859457514,-575.85731,0.00052328,120]
[358233713,1744859457523,-500.0,0.00052328,120]
[358233714,1744859457533,-630.65232745,0.00052328,120]
[358233715,1744859457542,-500.0,0.00052328,120]
[358233716,1744859457552,-500.0,0.00052328,120]
[358233717,1744859457562,-500.0,0.00052328,120]
[358233718,1744859457571,-1680.93,0.00052328,120]
[358233719,1744859457581,-575.85731,0.00052328,120]
[358233720,1744859457591,-944.39,0.00052328,120]
[358233721,1744859457604,-912.04,0.00052328,120]
[358233722,1744859457614,-859.32,0.00052328,120]
[358233723,1744859457624,-665.35,0.00052328,120]
[358233724,1744859457634,-500.0,0.00052328,120]
[358233725,1744859457643,-500.0,0.00052328,120]
[358233726,1744859457653,-575.89,0.00052328,120]
[358233727,1744859457662,-141.82600218,0.00052328,120]
[358233728,1744859457682,-489.72399782,0.00052328,120]
[358233729,1744859457692,-312.57641283,0.00052328,120]
[358233730,1744859457703,-187.42358717,0.00052328,120]
[358233731,1744859457714,-528.03,0.00052328,120]
[358233732,1744859457724,-500.0,0.00052328,120]
[358233733,1744859457734,-717.25,0.00052328,120]
[358233734,1744859457744,-151.0,0.00052328,120]
[358233735,1744859457753,-571.77831421,0.00052328,120]
[358233736,1744859457763,-585.76,0.00052328,120]
[358233737,1744859457773,-1023.50002699,0.00052328,120]
[358233738,1744859457793,-150.0,0.00051318,92]
[358233739,1744859457802,-2518.51997301,0.00052328,120]
[358233740,1744859457816,-778.58,0.00052328,120]
[358233741,1744859457826,-500.0,0.00052328,120]
[358233742,1744859457836,-1075.890495,0.00052328,120]
[358233743,1744859457845,-1075.890495,0.00052328,120]
[358233744,1744859457857,-509.77832867,0.00052328,120]
[358233745,1744859457866,-500.0,0.00052328,120]
[358233746,1744859457875,-1075.890495,0.00052328,120]
[358233747,1744859457886,-1075.890495,0.00052328,120]
[358233748,1744859457895,-500.0,0.00052328,120]
[358233749,1744859457904,-3080.45,0.00052328,120]
[358233750,1744859457915,-1436.82,0.00052328,120]
[358233751,1744859457925,-164.631275,0.00052328,120]
[358233752,1744859457934,-1064.0,0.00052328,120]
[358233753,1744859457943,-1080.57,0.00052328,120]
[358233754,1744859457953,-164.631275,0.00052328,120]
[358233755,1744859457963,-812.96,0.00052328,120]
[358233756,1744859457973,-2824.48,0.00052328,120]
[358233757,1744859457982,-151.0,0.00052328,120]
[358233758,1744859457992,-155.864217,0.00052328,120]
[358233759,1744859458002,-1368.25,0.00052328,120]
[358233760,1744859458011,-500.0,0.00052328,120]
[358233761,1744859458022,-1089.6,0.00052328,120]
[358233762,1744859458031,-500.0,0.00052328,120]
[358233763,1744859458041,-200.47224726,0.00052328,120]
[358233764,1744859458051,-500.0,0.00052328,120]
[358233765,1744859458061,-500.0,0.00052328,120]
[358233766,1744859458071,-500.0,0.00052328,120]
[358233767,1744859458081,-500.0,0.00052328,120]
[358233768,1744859458091,-1362.51,0.00052328,120]
[358233769,1744859458099,-607.4,0.00052328,120]
[358233770,1744859458109,-151.0,0.00052328,120]
[358233771,1744859458119,-151.0,0.00052328,120]
[358233772,1744859458130,-190.5846,0.00052328,120]
[358233773,1744859458143,-190.5846,0.00052328,120]
[358233774,1744859458153,-535.76,0.00052328,120]
[358233775,1744859458162,-983.28,0.00052328,120]
[358233776,1744859458172,-190.5846,0.00052328,120]
[358233777,1744859458182,-190.5846,0.00052328,120]
[358233778,1744859458191,-500.0,0.00052328,120]
[358233779,1744859458201,-1353.38,0.00052328,120]
[358233780,1744859458211,-1577.42,0.00052328,120]
[358233781,1744859458221,-500.0,0.00052328,120]
[358233782,1744859458231,-266.178989,0.00052328,120]
[358233783,1744859458241,-500.0,0.00052328,120]
[358233784,1744859458251,-1440.88,0.00052328,120]
[358233785,1744859458260,-1190.15,0.00052328,120]
[358233786,1744859458270,-500.0,0.00052328,120]
[358233787,1744859458280,-261.429433,0.00052328,120]
[358233788,1744859458291,-151.0,0.00052328,120]
[358233789,1744859458300,-984.85,0.00052328,120]
[358233790,1744859458310,-151.0,0.00052328,120]
[358233791,1744859458320,-261.429433,0.00052328,120]
[358233792,1744859458329,-155.099903,0.00052328,120]
[358233793,1744859458338,-151.0,0.00052328,120]
[358233794,1744859458348,-2797.85,0.00052328,120]
[358233795,1744859458358,-812.56,0.00052328,120]
[358233796,1744859458368,-772.92,0.00052328,120]
[358233797,1744859458378,-500.0,0.00052328,120]
[358233798,1744859458388,-1374.09,0.00052328,120]
[358233799,1744859458398,-151.0,0.00052328,120]
[358233800,1744859458407,-500.0,0.00052328,120]
[358233801,1744859458417,-500.0,0.00052328,120]
[358233802,1744859458426,-500.0,0.00052328,120]
[358233803,1744859458436,-500.0,0.00052328,120]
[358233804,1744859458446,-151.0,0.00052328,120]
[358233805,1744859458455,-500.0,0.00052328,120]
[358233806,1744859458465,-500.0,0.00052373,10]
[358233807,1744859458475,-322.08364756,0.00052373,10]
[358233808,1744859458489,-177.91635244,0.00052373,10]
[358233809,1744859458499,-258.28752165,0.00052373,10]
[358233810,1744859458509,-171.15612591,0.00052373,10]
[358233811,1744859458526,-328.84387409,0.00052373,10]
[358233812,1744859458536,-500.0,0.00052373,10]
[358233813,1744859458546,-500.0,0.00052373,10]
[358233814,1744859458556,-500.0,0.00052373,10]
[358233815,1744859458566,-150.0,0.00052385,7]
[358233816,1744859458576,-150.0,0.00052408,7]
[358233817,1744859458586,-6424.23440501,0.0005241,15]
[358233818,1744859458596,-1608.58092417,0.00052435,15]
[358233819,1744859458605,-150.0,0.00052443,7]
[358233820,1744859458615,-150.0,0.00052519,7]
[358233821,1744859458626,-1874.0102893,0.00052554,4]
[358233822,1744859458640,-150.0,0.0005257,7]
[358233823,1744859458655,-181.0,0.00052572,120]
[358233824,1744859458664,-181.0,0.00052582,120]
[358233825,1744859458673,-181.0,0.00052592,120]
[358233826,1744859458683,-151.0,0.00052592,120]
[358233827,1744859458693,-151.0,0.00052592,120]
[358233828,1744859458703,-1608.58092417,0.00052596,15]
[358233829,1744859458712,-500.0,0.00052601,120]
[358233830,1744859458721,-500.0,0.00052601,120]
[358233831,1744859458730,-503.18,0.00052602,120]
[358233832,1744859458739,-500.0,0.00052602,120]
[358233833,1744859458748,-493.15636679,0.00052602,120]
[358233834,1744859458757,-739.27,0.00052602,120]
[358233835,1744859458767,-14645.30719331,0.00052602,7]
[358233836,1744859458778,-45996.10689029,0.00052602,7]
[358233837,1744859458796,-1540.27030438,0.00052602,7]
[358233838,1744859458809,-1068.85270676,0.00052602,7]
[358233839,1744859458832,-498.84913739,0.00052602,7]
[358233840,1744859458844,-566.13677342,0.00052602,7]
[358233841,1744859458858,-285.80280444,0.00052602,7]
[358233842,1744859458869,-533.71400346,0.00052602,7]
[358233843,1744859458880,-494.87159407,0.00052602,7]
[358233844,1744859459311,-832.42854703,0.00052562,15]
[358233845,1744859459331,-150.0,0.00051386,2]
[358233846,1744859459339,-500.0,0.00052054,120]
[358233847,1744859459415,-5591.80585798,0.00052562,15]
[358233848,1744859459426,-652.13430709,0.00052602,7]
[358233849,1744859459438,-3840.45983549,0.00052602,7]
[358233850,1744859459450,-549.05,0.00052602,7]
[358233851,1744859459534,-7800.0,0.00052602,7]
[358233852,1744859459548,-254.29752972,0.00052602,7]
[358233853,1744859459564,-658.37860201,0.00052602,7]
[358233854,1744859460320,-1116.04679541,0.00052602,7]
[358233855,1744859460358,-21.0478597,0.00052602,7]
[358233856,1744859460374,-460.78247885,0.00052328,120]
[358233857,1744859460385,-39.21752115,0.00052328,120]
[358233858,1744859460394,-1384.28247185,0.00052602,7]
[358233859,1744859460706,-472.40809009,0.00052054,120]
[358233860,1744859460715,-151.0,0.00052328,120]
[358233861,1744859460724,-7349.88311069,0.00052602,7]
[358233862,1744859460735,-2663.52894662,0.00052602,7]
[358233863,1744859460746,-959.71796455,0.00052602,7]
[358233864,1744859460767,-4240.0,0.00052602,7]
[358233865,1744859460778,-397.21344001,0.00052602,7]
[358233866,1744859460789,-37976.68772934,0.00052602,7]
[358233867,1744859460799,-500.0,0.00052602,120]
[358233868,1744859460810,-617.26,0.00052602,120]
[358233869,1744859460821,-1532.67,0.00052602,120]
[358233870,1744859460831,-507.73,0.00052602,120]
[358233871,1744859460840,-500.0,0.00052602,120]
[358233872,1744859460849,-500.0,0.00052602,120]
[358233873,1744859460860,-500.0,0.00052602,120]
[358233874,1744859460869,-569.62,0.00052602,120]
[358233875,1744859460878,-500.0,0.00052602,120]
[358233876,1744859460889,-500.0,0.00052602,120]
[358233877,1744859460899,-500.0,0.00052602,120]
[358233878,1744859460908,-500.0,0.00052602,120]
[358233879,1744859460917,-500.0,0.00052602,120]
[358233880,1744859460926,-1004.15,0.00052602,120]
[358233881,1744859460936,-980.75,0.00052602,120]
[358233882,1744859460945,-552.2,0.00052602,120]
[358233883,1744859460954,-500.0,0.00052602,120]
[358233884,1744859460963,-500.0,0.00052602,120]
[358233885,1744859460972,-500.0,0.00052602,120]
[358233886,1744859460982,-500.0,0.00052602,120]
[358233887,1744859460991,-390.19036437,0.00052602,120]
[358233888,1744859461004,-109.80963563,0.00052602,120]
[358233889,1744859461013,-500.0,0.00052602,120]
[358233890,1744859461021,-114.19427525,0.00052602,120]
[358233891,1744859461033,-259.20999954,0.00052602,120]
[358233892,1744859461044,-169.06236482,0.00052602,120]
[358233893,1744859461054,-287.23894518,0.00052602,120]
[358233894,1744859988208,-300.0,0.00032877,30]
[358233895,1744859988235,-258.4832,0.000334,2]
[358233896,1744860070483,250.0,0.00017,2]
[358233897,1744860071562,250.0,0.00019,2]
[358233898,1744860071590,50.0,0.00019,2]
[358233899,1744860075186,-186.72717665,0.00021,2]
[358233900,1744860386384,2003.56798457,0.0002,5]
[358233901,1744860422997,-236.74064498,0.00024,5]
[358233902,1744860425166,-163.27282335,0.00021,2]
[358233903,1744860425189,-867.67455655,0.00024,5]
[358233904,1744860425210,-46.5542544,0.00024932,2]
[358233905,1744860427077,-111.6057456,0.00024932,2]
[358233906,1744860427102,-157.5530901,0.0003,20]
[358233907,1744860427124,-400.0,0.00031329,2]
[358233908,1744860427149,-184.4686948,0.00031329,2]
[358233915,1744860565108,-277.90114759,0.0002488,7]
[358233933,1744860631765,-322.09885141,0.0002488,7]
[358233935,1744860631775,-2032.99999979,0.00025,7]
[358233937,1744860631784,-400.0,0.00031329,2]
[358233939,1744860631793,-400.0,0.00031329,3]
[358233940,1744860631803,-365.0,0.00031329,2]
[358233941,1744860631813,-5050.8236766,0.0003133,2]
[358233942,1744860631922,-1090.72237414,0.0003133,2]
[358233948,1744860637836,-1886.20418463,0.0003133,2]
[358233949,1744860638005,-81714.48465612,0.0003133,2]
[358233950,1744860638016,-283.94,0.00032877,30]
[358233951,1744860638026,-152.39,0.000335,31]
[358233952,1744860638036,-560.0,0.00033719,2]
[358233953,1744860638046,-560.0,0.0003386,3]
[358233954,1744860638056,-158.16,0.00035118,2]
[358233955,1744860638066,-747.07,0.00035118,2]
[358233956,1744860638076,-397.80101665,0.000356,7]
[358233957,1744860638086,-783.0,0.00036292,2]
[358233958,1744860638095,-383.0,0.00036596,3]
[358233959,1744860638106,-209.0,0.0003863,30]
[358233960,1744860638122,-1097.0,0.00039061,5]
[358233961,1744860638142,-209.0,0.0004037,30]
[358233962,1744860638154,-152.39,0.000408,31]
[358233963,1744860638164,-152.39,0.000408,31]
[358233964,1744860638175,-491.3906,0.00040888,7]
[358233965,1744860638195,-150.0,0.00041,14]
[358233966,1744860638216,-153.82,0.00041,2]
[358233967,1744860638237,-200.0,0.00041096,20]
[358233968,1744860638248,-200.0,0.00041096,20]
[358233969,1744860638258,-200.0,0.00041096,20]
[358233970,1744860638267,-150.0,0.0004137,90]
[358233971,1744860638277,-264.78601675,0.0004155,90]
[358233972,1744860638287,-978.0,0.00042042,5]
[358233974,1744860638297,-209.0,0.0004211,30]
[358233976,1744860638307,-283.94,0.00042162,30]
[358233978,1744860638316,-509.6,0.00042466,30]
[358233980,1744860638326,-539.5,0.00042898,60]
[358233982,1744860638336,-150.0,0.00043151,90]
[358233984,1744860638346,-509.6,0.00043315,30]
[358233986,1744860638356,-400.0,0.000435,120]
[358233988,1744860638366,-209.0,0.0004385,30]
[358233989,1744860638376,-463.31949792,0.00043861,2]
[358233990,1744860638385,-4422.5156,0.00043888,30]
[358233991,1744860638395,-689.12730982,0.00044123,30]
[358233992,1744860638405,-1096.0,0.00044123,120]
[358233993,1744860638414,-160.0,0.00044123,2]
[358233994,1744860638424,-1068.0,0.00044123,30]
[358233995,1744860638434,-8463.69389547,0.00044123,30]
[358233996,1744860638443,-509.6,0.00044164,30]
[358233997,1744860638453,-151.0,0.00045,120]
[358233998,1744860638463,-3315.67432807,0.00045,120]
[358233999,1744860638472,-509.6,0.00045014,30]
[358234000,1744860638482,-158.16,0.00045305,2]
[358234001,1744860638492,-150.0,0.00045308,90]
[358234002,1744860638501,-250.0,0.00045406,120]
[358234003,1744860638511,-1068.0,0.0004544,30]
[358234004,1744860638520,-209.0,0.0004559,30]
[358234005,1744860638529,-509.6,0.00045863,30]
[358234006,1744860638539,-757.28,0.00046349,2]
[358234007,1744860638548,-1623.042,0.00046458,77]
[358234008,1744860638557,-152.0,0.00046458,3]
[358234009,1744860638567,-1000.0,0.00046617,2]
[358234010,1744860638576,-509.6,0.00046712,30]
[358234011,1744860638587,-178.31,0.00046921,2]
[358234012,1744860638597,-2000.0,0.00047,120]
[358234013,1744860638607,-209.0,0.0004733,30]
[358234014,1744860638617,-23900.0,0.00047484,2]
[358234015,1744860638626,-3000.0,0.000475,120]
[358234016,1744860638638,-509.6,0.00047562,30]
[358234017,1744860638648,-197.33,0.00047651,120]
[358234018,1744860638658,-1068.0,0.00047831,30]
[358234019,1744860638667,-202.07984555,0.00047939,14]
[358234020,1744860638676,-2000.0,0.00048,120]
[358234021,1744860638686,-721.56935661,0.00048,120]
[358234022,1744860638695,-152.39,0.000481,45]
[358234023,1744860638704,-152.39,0.000481,45]
[358234024,1744860638714,-250.0,0.00048266,120]
[358234025,1744860638724,-519.12,0.00048266,2]
[358234026,1744860638733,-579.65,0.00048266,2]
[358234027,1744860638743,-459.54,0.00048294,120]
[358234028,1744860638754,-509.6,0.00048411,30]
[358234029,1744860638763,-152.0,0.00048585,4]
[358234030,1744860638773,-503.16535901,0.000486,120]
[358234031,1744860638783,-757.28,0.00048612,2]
[358234032,1744860638792,-2000.0,0.00049,120]
[358234033,1744860638803,-209.0,0.0004907,30]
[358234034,1744860638812,-509.6,0.0004926,30]
[358234035,1744860638822,-376.42,0.00049549,2]
[358234036,1744860638832,-166.885245,0.00049733,2]
[358234037,1744860638844,-3212.11720255,0.00049927,15]
[358234038,1744860638853,-3000.0,0.0005,120]
[358234039,1744860638863,-2000.0,0.0005,120]
[358234040,1744860638874,-502.0,0.00050027,2]
[358234041,1744860638884,-509.6,0.0005011,30]
[358234042,1744860638894,-3212.1172025,0.00050335,15]
[358234043,1744860638904,-1068.0,0.00050349,30]
[358234044,1744860638914,-888.49941619,0.000504,2]
[358234045,1744860638923,-152.0,0.00050712,5]
[358234046,1744860638933,-3212.1172025,0.00050743,15]
[358234047,1744860638942,-209.0,0.0005081,30]
[358234048,1744860638952,-757.28,0.00050876,2]
[358234049,1744860638963,-2110.0,0.00050924,30]
[358234050,1744860638972,-3000.0,0.00051,120]
[358234051,1744860638982,-207.98,0.00051102,30]
[358234052,1744860638991,-1021.0,0.00051118,30]
[358234053,1744860639001,-3212.1172025,0.0005115,15]
[358234054,1744860639011,-2110.0,0.00051424,30]
[358234055,1744860639021,-283.94,0.00051447,30]
[358234056,1744860639030,-791.0,0.00051484,2]
[358234057,1744860639039,-1438.0,0.00051484,120]
[358234058,1744860639048,-1280.0,0.00051484,120]
[358234059,1744860639056,-908.0,0.00051484,120]
[358234060,1744860639065,-545.0,0.00051484,120]
[358234061,1744860639074,-579.02,0.00051484,120]
[358234062,1744860639083,-4149.0,0.00051484,120]
[358234063,1744860639093,-1042.586,0.00051484,120]
[358234064,1744860639102,-155.028,0.00051484,120]
[358234065,1744860639111,-951.988,0.00051484,120]
[358234066,1744860639120,-1143.233,0.00051484,120]
[358234067,1744860639129,-3998.068,0.00051484,120]
[358234068,1744860639138,-1328.0,0.00051484,120]
[358234069,1744860639147,-2056.588,0.00051484,120]
[358234070,1744860639156,-3212.1172025,0.00051558,15]
[358234071,1744860639166,-153.65,0.00051754,2]
[358234072,1744860639175,-150.0,0.00051781,120]
[358234073,1744860639186,-2000.0,0.000518,2]
[358234074,1744860639195,-400.0,0.000518,18]
[358234075,1744860639205,-6687.6496,0.00051854,2]
[358234076,1744860639214,-224.6048,0.00051854,2]
[358234077,1744860639224,-315.9481,0.00051854,2]
[358234078,1744860639235,-1000.0,0.00051854,2]
[358234079,1744860639244,-800.0,0.000519,18]
[358234080,1744860639254,-500.0,0.00051916,2]
[358234081,1744860639264,-2225.84,0.00051916,2]
[358234082,1744860639274,-2110.0,0.00051924,30]
[358234083,1744860639283,-964.65,0.00051934,2]
[358234084,1744860639293,-213.0,0.00051944,2]
[358234085,1744860639302,-14735.4196,0.00051944,2]
[358234086,1744860639311,-1000.0,0.00051944,2]
[358234087,1744860639321,-2403.01035817,0.00051953,2]
[358234088,1744860639331,-59699.8654,0.00051954,2]
[358234089,1744860639342,-842.0564,0.00051954,2]